[Event "FIDE WCCC Open-08 2024"]
[Site "Montesilvano"]
[Date "2024.11.20"]
[Round "6.42"]
[White "Shroff, Dhairya Amit"]
[Black "Bakirli, Matin"]
[Result "1-0"]
[ECO "B21"]
[WhiteElo "1444"]
[BlackElo "1578"]
[Annotator "NA RC"]
[PlyCount "119"]
[EventDate "2024.11.18"]
[EventType "swiss"]
[EventCountry "ITA"]
[SourceTitle "playchess.com"]
[Source "ChessBase"]
[SourceQuality "1"]
[TimeControl "5400+30"]

1. e4 {[%emt 0:00:28]} c5 {[%emt 0:00:07]} 2. d4 {[%emt 0:01:55]} cxd4 {[%emt 0:00:04]} 3. c3 {[%emt 0:00:38]} dxc3 {[%emt 0:00:04]} 4. Nxc3 {[%emt 0:00:25]} Nc6 {[%emt 0:00:04]} 5. Nf3 {[%emt 0:00:36]} d6 {[%emt 0:00:27]} 6. Bc4 {[%emt 0:00:30]} e6 {[%emt 0:00:40]} 7. O-O {[%emt 0:00:54]} Nf6 {[%emt 0:00:46]} 8. Qe2 {[%emt 0:01:29]} Be7 {[%emt 0:01:12]} 9. Rd1 {[%emt 0:01:23]} e5 {[%emt 0:02:32]} 10. h3 {[%emt 0:04:53]} h6 {[%emt 0:03:54]} 11. Be3 {[%emt 0:01:14]} O-O {[%emt 0:04:05]} 12. Rac1 {[%emt 0:01:00]} Be6 {[%emt 0:05:56]} 13. Nd5 {[%emt 0:03:20]} Na5 {[%emt 0:34:49]} 14. Bb5 {[%emt 0:01:31]} Bxd5 {[%emt 0:02:03]} 15. exd5 {[%emt 0:00:33]} a6 {[%emt 0:01:26]} 16. Ba4 {[%emt 0:00:30]} b5 {[%emt 0:01:30]} 17. Bc2 {[%emt 0:02:00]} Nc4 {[%emt 0:02:19]} 18. Bb3 {[%emt 0:02:54]} Nxe3 {[%emt 0:00:55]} 19. Qxe3 {[%emt 0:00:31]} Nh7 {[%emt 0:07:09]} 20. Rc6 {[%emt 0:03:01]} f5 {[%emt 0:01:48]} 21. Nxe5 {[%emt 0:06:26]} Bg5 {[%emt 0:29:10]} 22. f4 {[%emt 0:00:16]} Re8 {[%emt 0:00:00]} 23. fxg5 {[%emt 0:01:35]} Nxg5 {[%emt 0:00:00]} 24. Qb6 {[%emt 0:00:58]} dxe5 {[%emt 0:00:00]} 25. d6+ {[%emt 0:02:37]} Kh7 {[%emt 0:00:00]} 26. Rc7 {[%emt 0:01:43]} Ne6 {[%emt 0:00:00]} 27. Bxe6 {[%emt 0:00:24]} Rxe6 {[%emt 0:00:00]} 28. Qb7 {[%emt 0:01:10]} Rg6 {[%emt 0:00:00]} 29. d7 {[%emt 0:00:55]} e4 {[%emt 0:01:55]} 30. Qxa8 {[%emt 0:02:07]} Qxa8 {[%emt 0:01:20]} 31. d8=Q {[%emt 0:00:35]} Qxd8 {[%emt 0:00:30]} 32. Rxd8 {[%emt 0:00:11]} f4 {[%emt 0:00:06]} 33. Kh2 {[%emt 0:07:33]} Re6 {[%emt 0:00:29]} 34. Rdd7 {[%emt 0:00:41]} e3 {[%emt 0:00:46]} 35. Rxg7+ {[%emt 0:00:41]} Kh8 {[%emt 0:00:03]} 36. Rgd7 {[%emt 0:00:58]} Re8 {[%emt 0:00:21]} 37. Rc1 {[%emt 0:00:54]} Kg8 {[%emt 0:00:25]} 38. Kg1 {[%emt 0:00:18]} Kh8 {[%emt 0:00:06]} 39. Kf1 {[%emt 0:00:18]} Kg8 {[%emt 0:00:06]} 40. Ke2 {[%emt 0:00:17]} Kh8 {[%emt 0:00:23]} 41. Rd4 {[%emt 0:00:17]} Rf8 {[%emt 0:00:04]} 42. Rf1 {[%emt 0:00:16]} Kg8 {[%emt 0:00:02]} 43. Rfxf4 {[%emt 0:00:13]} Re8 {[%emt 0:00:02]} 44. Rf6 {[%emt 0:00:35]} Kg7 {[%emt 0:00:07]} 45. Rxa6 {[%emt 0:00:07]} Rc8 {[%emt 0:00:15]} 46. Kxe3 {[%emt 0:00:31]} Re8+ {[%emt 0:00:06]} 47. Kf2 {[%emt 0:00:19]} Rf8+ {[%emt 0:00:01]} 48. Kg1 {[%emt 0:51:50]} Rc8 {[%emt 0:00:09]} 49. Rd7+ {[%emt 0:00:00]} Kg8 {[%emt 0:00:06]} 50. Rxh6 {[%emt 0:00:00]} Rc1+ {[%emt 0:00:02]} 51. Kh2 {[%emt 0:00:00]} Rc2 {[%emt 0:00:06]} 52. Rb6 {[%emt 0:00:00]} Rc8 {[%emt 0:00:04]} 53. Rxb5 {[%emt 0:00:00]} Re8 {[%emt 0:00:10]} 54. a4 {[%emt 0:00:00]} Ra8 {[%emt 0:00:09]} 55. a5 {[%emt 0:00:00]} Kf8 {[%emt 0:00:06]} 56. a6 {[%emt 0:00:00]} Ke8 {[%emt 0:00:05]} 57. Rh7 {[%emt 0:00:00]} Rd8 {[%emt 0:00:08]} 58. Rbb7 {[%emt 0:00:00]} Rd7 {[%emt 0:00:12]} 59. Rbxd7 {[%emt 0:00:00]} Kf8 {[%emt 0:00:54]} 60. Rd8# {[%emt 0:00:00]} 1-0

[Event "FIDE WCCC Open-08 2024"]
[Site "Montesilvano"]
[Date "2024.11.20"]
[Round "6.44"]
[White "Glod, Peter"]
[Black "Lee, Yoonjae A"]
[Result "1-0"]
[ECO "C54"]
[WhiteElo "1409"]
[BlackElo "1546"]
[Annotator "NA RC"]
[PlyCount "47"]
[EventDate "2024.11.18"]
[EventType "swiss"]
[EventCountry "ITA"]
[SourceTitle "playchess.com"]
[Source "ChessBase"]
[SourceQuality "1"]
[TimeControl "5400+30"]

1. e4 {[%emt 0:00:02]} e5 {[%emt 0:01:48]} 2. Nf3 {[%emt 0:01:25]} Nc6 {[%emt 0:03:02]} 3. Bc4 {[%emt 0:00:18]} Bc5 {[%emt 0:01:15]} 4. c3 {[%emt 0:01:19]} Nf6 {[%emt 0:00:37]} 5. d4 {[%emt 0:00:17]} exd4 {[%emt 0:00:26]} 6. cxd4 {[%emt 0:00:10]} Bb4+ {[%emt 0:00:47]} 7. Nc3 {[%emt 0:00:15]} Nxe4 {[%emt 0:00:53]} 8. O-O {[%emt 0:00:12]} Bxc3 {[%emt 0:00:25]} 9. bxc3 {[%emt 0:00:08]} d5 {[%emt 0:00:06]} 10. Ba3 {[%emt 0:00:25]} dxc4 {[%emt 0:00:33]} 11. Re1 {[%emt 0:00:10]} f5 {[%emt 0:17:39]} 12. Nd2 {[%emt 0:00:15]} Be6 {[%emt 0:02:23]} 13. Nxe4 {[%emt 0:02:52]} fxe4 {[%emt 0:00:21]} 14. Rxe4 {[%emt 0:00:09]} Qd5 {[%emt 0:01:31]} 15. Qe2 {[%emt 0:02:39]} Nd8 {[%emt 0:00:56]} 16. Re1 {[%emt 0:01:08]} c6 {[%emt 0:00:58]} 17. Re5 {[%emt 0:02:18]} Qd7 {[%emt 0:03:56]} 18. Qh5+ {[%emt 0:02:39]} Qf7 {[%emt 0:00:42]} 19. Rxe6+ {[%emt 0:00:46]} Nxe6 {[%emt 0:00:10]} 20. Rxe6+ {[%emt 0:00:10]} Kd8 {[%emt 0:00:09]} 21. Qxf7 {[%emt 0:00:09]} Kc8 {[%emt 0:00:39]} 22. Bd6 {[%emt 0:00:20]} Kd8 {[%emt 0:00:07]} 23. Qe7+ {[%emt 0:00:14]} Kc8 {[%emt 0:00:05]} 24. Qc7# {[%emt 0:00:36]} 1-0

[Event "FIDE WCCC Open-08 2024"]
[Site "Montesilvano"]
[Date "2024.11.20"]
[Round "6.45"]
[White "Ameen Akbar T A"]
[Black "Xin, Andrew M."]
[Result "0-1"]
[ECO "C12"]
[WhiteElo "1579"]
[BlackElo "1546"]
[Annotator "NA RC"]
[PlyCount "60"]
[EventDate "2024.11.18"]
[EventType "swiss"]
[EventCountry "ITA"]
[SourceTitle "playchess.com"]
[Source "ChessBase"]
[SourceQuality "1"]
[TimeControl "5400+30"]

1. e4 {[%emt 0:00:31]} e6 {[%emt 0:00:30]} 2. d4 {[%emt 0:00:08]} d5 {[%emt 0:00:30]} 3. Nc3 {[%emt 0:00:31]} Nf6 {[%emt 0:00:09]} 4. Bg5 {[%emt 0:00:11]} Nbd7 {[%emt 0:02:49]} 5. e5 {[%emt 0:02:15]} h6 {[%emt 0:00:12]} 6. Bxf6 {[%emt 0:01:47]} gxf6 {[%emt 0:00:07]} 7. f4 {[%emt 0:00:56]} f5 {[%emt 0:01:23]} 8. Nf3 {[%emt 0:00:36]} c5 {[%emt 0:01:23]} 9. Bb5 {[%emt 0:01:05]} Qb6 {[%emt 0:00:23]} 10. Qd2 {[%emt 0:12:20]} a6 {[%emt 0:01:59]} 11. Bxd7+ {[%emt 0:00:20]} Bxd7 {[%emt 0:00:28]} 12. O-O-O {[%emt 0:02:43]} c4 {[%emt 0:00:38]} 13. Qe3 {[%emt 1:13:37]} Qc7 {[%emt 0:00:51]} 14. h3 {[%emt 0:00:00]} b5 {[%emt 0:00:36]} 15. Nd2 {[%emt 0:00:00]} a5 {[%emt 0:02:32]} 16. Kb1 {[%emt 0:00:00]} b4 {[%emt 0:01:52]} 17. Ne2 {[%emt 0:00:00]} a4 {[%emt 0:01:10]} 18. c3 {[%emt 0:00:00]} a3 {[%emt 0:01:07]} 19. b3 {[%emt 0:00:00]} cxb3 {[%emt 0:01:14]} 20. Nxb3 {[%emt 0:00:00]} Rc8 {[%emt 0:00:56]} 21. Rc1 {[%emt 0:00:00]} Qb6 {[%emt 0:00:59]} 22. Rc2 {[%emt 0:00:00]} Qa6 {[%emt 0:03:23]} 23. Rhc1 {[%emt 0:00:00]} Bb5 {[%emt 0:00:23]} 24. cxb4 {[%emt 0:00:00]} Bd3 {[%emt 0:01:20]} 25. Nc5 {[%emt 0:00:00]} Bxc2+ {[%emt 0:00:24]} 26. Rxc2 {[%emt 0:00:00]} Bxc5 {[%emt 0:00:36]} 27. dxc5 {[%emt 0:00:00]} Rg8 {[%emt 0:00:22]} 28. Nc3 {[%emt 0:00:00]} Qf1+ {[%emt 0:01:11]} 29. Rc1 {[%emt 0:00:00]} Qxg2 {[%emt 0:00:44]} 30. Nb5 {[%emt 0:00:00]} Qb2# {[%emt 0:00:10]} 0-1

[Event "FIDE WCCC Open-08 2024"]
[Site "Montesilvano"]
[Date "2024.11.20"]
[Round "6.49"]
[White "Thomas, Robert K"]
[Black "Kim, Rian B"]
[Result "1/2-1/2"]
[ECO "E05"]
[WhiteElo "2166"]
[BlackElo "1452"]
[Annotator "RC"]
[PlyCount "49"]
[EventDate "2024.11.18"]
[EventType "swiss"]
[EventCountry "ITA"]
[SourceTitle "playchess.com"]
[Source "ChessBase"]
[SourceQuality "1"]
[TimeControl "5400+30"]

1. d4 {[%emt 0:00:01]} Nf6 {[%emt 0:01:56]} 2. c4 {[%emt 0:00:06]} e6 {[%emt 0:00:39]} 3. Nf3 {[%emt 0:00:05]} d5 {[%emt 0:01:33]} 4. g3 {[%emt 0:00:39]} dxc4 {[%emt 0:06:00]} 5. Bg2 {[%emt 0:00:10]} Be7 {[%emt 0:04:13]} 6. O-O {[%emt 0:00:30]} c6 {[%emt 0:07:26]} 7. Nbd2 {[%emt 0:01:07]} b5 {[%emt 0:04:04]} 8. a4 {[%emt 0:00:43]} Bb7 {[%emt 0:08:06]} 9. axb5 {[%emt 0:01:20]} cxb5 {[%emt 0:02:18]} 10. Re1 {[%emt 0:02:08]} Nbd7 {[%emt 0:06:21]} 11. Qc2 {[%emt 0:01:56]} Qc7 {[%emt 0:03:12]} 12. e4 {[%emt 0:04:46]} a6 {[%emt 0:03:18]} 13. Nf1 {[%emt 0:02:50]} O-O {[%emt 0:04:07]} 14. Bf4 {[%emt 0:00:12]} Qc6 {[%emt 0:13:17]} 15. Bg5 {[%emt 0:07:53]} Rfe8 {[%emt 0:06:18]} 16. N1d2 {[%emt 0:08:27]} h6 {[%emt 0:01:23]} 17. Be3 {[%emt 0:03:37]} Nxe4 {[%emt 0:01:55]} 18. Bxh6 {[%emt 0:01:24]} Nxd2 {[%emt 0:23:24]} 19. Bxd2 {[%emt 0:00:19]} f6 {[%emt 0:00:00]} 20. Nh4 {[%emt 0:00:51]} Qb6 {[%emt 0:00:00]} 21. Ba5 {[%emt 0:02:35]} Qa7 {[%emt 0:00:00]} 22. Rxe6 {[%emt 0:01:52]} Bxg2 {[%emt 0:00:00]} 23. Kxg2 {[%emt 0:02:18]} Qxd4 {[%emt 0:00:00]} 24. Rae1 {[%emt 0:03:09]} Ne5 {[%emt 0:00:00]} 25. Nf3 {[%emt 0:07:06]} 1/2-1/2

[Event "FIDE WCCC Open-08 2024"]
[Site "Montesilvano"]
[Date "2024.11.20"]
[Round "6.52"]
[White "Morais, Benjamin Guedes"]
[Black "Solovev, Nikolai"]
[Result "1-0"]
[ECO "A38"]
[WhiteElo "1652"]
[BlackElo "1446"]
[Annotator "NA RC"]
[PlyCount "85"]
[EventDate "2024.11.18"]
[EventType "swiss"]
[EventCountry "ITA"]
[SourceTitle "playchess.com"]
[Source "ChessBase"]
[SourceQuality "1"]
[TimeControl "5400+30"]

1. Nf3 {[%emt 0:00:02]} c5 {[%emt 0:00:05]} 2. g3 {[%emt 0:00:08]} Nc6 {[%emt 0:00:04]} 3. Bg2 {[%emt 0:00:12]} g6 {[%emt 0:00:09]} 4. O-O {[%emt 0:00:14]} Bg7 {[%emt 0:00:21]} 5. c4 {[%emt 0:00:08]} Nf6 {[%emt 0:00:13]} 6. Nc3 {[%emt 0:00:05]} O-O {[%emt 1:32:38]} 7. a3 {[%emt 1:33:11]} d6 {[%emt 0:00:00]} 8. Rb1 {[%emt 0:00:00]} Bg4 {[%emt 0:00:00]} 9. b4 {[%emt 0:00:00]} Nd4 {[%emt 0:00:00]} 10. Bb2 {[%emt 0:00:00]} Bxf3 {[%emt 0:00:00]} 11. exf3 {[%emt 0:00:00]} a6 {[%emt 0:00:00]} 12. Ne2 {[%emt 0:00:00]} Nd7 {[%emt 0:00:00]} 13. Nxd4 {[%emt 0:00:00]} cxd4 {[%emt 0:00:00]} 14. f4 {[%emt 0:00:00]} Rb8 {[%emt 0:00:00]} 15. Qe2 {[%emt 0:00:00]} b5 {[%emt 0:00:00]} 16. cxb5 {[%emt 0:00:00]} Rxb5 {[%emt 0:00:00]} 17. Rfe1 {[%emt 0:00:00]} Re8 {[%emt 0:00:00]} 18. Qe4 {[%emt 0:00:00]} Qb6 {[%emt 0:00:00]} 19. Qc6 {[%emt 0:00:00]} Nf6 {[%emt 0:00:00]} 20. Qxb6 {[%emt 0:00:00]} Rxb6 {[%emt 0:00:00]} 21. Bxd4 {[%emt 0:00:00]} Rbb8 {[%emt 0:00:00]} 22. Rec1 {[%emt 0:00:00]} h5 {[%emt 0:00:00]} 23. Ba7 {[%emt 0:00:00]} Rbc8 {[%emt 0:00:00]} 24. Bb7 {[%emt 0:00:00]} Rxc1+ {[%emt 0:00:00]} 25. Rxc1 {[%emt 0:00:00]} Ng4 {[%emt 0:00:00]} 26. Rc8 {[%emt 0:00:00]} Rxc8 {[%emt 0:00:00]} 27. Bxc8 {[%emt 0:00:00]} Bb2 {[%emt 0:00:00]} 28. Bxg4 {[%emt 0:00:00]} hxg4 {[%emt 0:00:00]} 29. a4 {[%emt 0:00:00]} e5 {[%emt 0:00:00]} 30. fxe5 {[%emt 0:00:00]} dxe5 {[%emt 0:00:00]} 31. Kf1 {[%emt 0:00:00]} Kf8 {[%emt 0:00:00]} 32. Ke2 {[%emt 0:00:00]} Ke7 {[%emt 0:00:00]} 33. Kd3 {[%emt 0:00:00]} Kd6 {[%emt 0:00:00]} 34. Kc2 {[%emt 0:00:00]} Ba3 {[%emt 0:00:00]} 35. b5 {[%emt 0:00:00]} a5 {[%emt 0:00:00]} 36. d4 {[%emt 0:00:00]} exd4 {[%emt 0:00:00]} 37. Bxd4 {[%emt 0:00:00]} Kc7 {[%emt 0:00:00]} 38. Kb3 {[%emt 0:00:00]} Bd6 {[%emt 0:00:00]} 39. Kc4 {[%emt 0:00:00]} f5 {[%emt 0:00:00]} 40. Kd5 {[%emt 0:00:00]} Be7 {[%emt 0:00:00]} 41. Ke6 {[%emt 0:00:00]} Bd6 {[%emt 0:00:00]} 42. Be5 {[%emt 0:00:00]} Bxe5 {[%emt 0:00:00]} 43. Kxe5 {[%emt 0:00:00]} 1-0

[Event "FIDE WCCC Open-08 2024"]
[Site "Montesilvano"]
[Date "2024.11.20"]
[Round "6.55"]
[White "Papadopoulos, Antonios P"]
[Black "Cronje, Frederick"]
[Result "0-1"]
[ECO "C10"]
[WhiteElo "1455"]
[BlackElo "1434"]
[Annotator "NA RC"]
[PlyCount "46"]
[EventDate "2024.11.18"]
[EventType "swiss"]
[EventCountry "ITA"]
[SourceTitle "playchess.com"]
[Source "ChessBase"]
[SourceQuality "1"]
[TimeControl "5400+30"]

1. e4 {[%emt 0:00:14]} e6 {[%emt 0:00:07]} 2. d4 {[%emt 0:00:16]} d5 {[%emt 0:00:11]} 3. exd5 {[%emt 0:00:09]} exd5 {[%emt 0:00:23]} 4. Nc3 {[%emt 0:00:23]} Nf6 {[%emt 0:00:15]} 5. Nf3 {[%emt 0:01:29]} c5 {[%emt 0:00:20]} 6. Bg5 {[%emt 0:00:42]} Bg4 {[%emt 0:01:14]} 7. dxc5 {[%emt 0:00:38]} Bxc5 {[%emt 0:00:06]} 8. Nxd5 {[%emt 0:00:30]} Qxd5 {[%emt 0:00:24]} 9. Qe2+ {[%emt 0:00:39]} Qe6 {[%emt 0:00:39]} 10. O-O-O {[%emt 0:00:29]} O-O {[%emt 0:00:39]} 11. Bxf6 {[%emt 0:01:05]} Qxf6 {[%emt 0:01:39]} 12. Qb5 {[%emt 0:01:05]} Bb6 {[%emt 0:00:33]} 13. Be2 {[%emt 0:00:31]} Nc6 {[%emt 0:00:42]} 14. h3 {[%emt 0:00:47]} Bxf3 {[%emt 0:01:34]} 15. Bxf3 {[%emt 1:29:03]} Rac8 {[%emt 0:00:52]} 16. Rd5 {[%emt 0:00:00]} Nd4 {[%emt 0:01:13]} 17. Qd3 {[%emt 0:00:00]} Nxc2 {[%emt 0:03:59]} 18. Kb1 {[%emt 0:00:00]} Nb4 {[%emt 0:00:29]} 19. Qe4 {[%emt 0:00:00]} Rc2 {[%emt 0:01:32]} 20. Qxb4 {[%emt 0:00:00]} Rfc8 {[%emt 0:04:05]} 21. a3 {[%emt 0:00:00]} Rxf2 {[%emt 0:03:11]} 22. Rd7 {[%emt 0:00:00]} Rcc2 {[%emt 0:01:43]} 23. b3 {[%emt 0:00:00]} Qb2# {[%emt 0:00:55]} 0-1

[Event "FIDE WCCC Open-08 2024"]
[Site "Montesilvano"]
[Date "2024.11.22"]
[Round "7.1"]
[White "Sattwik Swain"]
[Black "Li, Aiden Linyuan"]
[Result "1/2-1/2"]
[ECO "B15"]
[WhiteElo "1787"]
[BlackElo "1877"]
[Annotator "NA RC"]
[PlyCount "78"]
[EventDate "2024.11.18"]
[EventType "swiss"]
[EventCountry "ITA"]
[SourceTitle "playchess.com"]
[Source "ChessBase"]
[SourceQuality "1"]
[TimeControl "5400+30"]

1. e4 {[%emt 0:00:02]} c6 {[%emt 0:00:06]} 2. d4 {[%emt 0:00:11]} d5 {[%emt 0:00:08]} 3. Nc3 {[%emt 0:00:06]} dxe4 {[%emt 0:00:05]} 4. Nxe4 {[%emt 0:00:06]} Nf6 {[%emt 0:00:04]} 5. Nxf6+ {[%emt 0:00:14]} exf6 {[%emt 0:00:06]} 6. c3 {[%emt 0:00:11]} Bd6 {[%emt 0:00:05]} 7. Bd3 {[%emt 0:00:25]} O-O {[%emt 0:00:06]} 8. Qc2 {[%emt 0:00:10]} Re8+ {[%emt 0:00:03]} 9. Ne2 {[%emt 0:00:09]} h5 {[%emt 0:00:04]} 10. Be3 {[%emt 0:00:16]} Nd7 {[%emt 0:03:39]} 11. O-O-O {[%emt 0:00:39]} Nf8 {[%emt 0:00:06]} 12. c4 {[%emt 0:01:03]} Be6 {[%emt 0:01:05]} 13. Nc3 {[%emt 0:01:16]} Rc8 {[%emt 0:02:17]} 14. Kb1 {[%emt 0:05:40]} a6 {[%emt 0:10:18]} 15. c5 $14 {[%emt 0:09:08]} Bc7 {[%emt 0:08:59]} 16. Rhe1 {[%emt 0:00:29]} Qd7 {[%emt 0:09:55]} 17. f3 {[%emt 0:19:56]} g6 {[%emt 0:11:35]} 18. Ne4 {[%emt 0:07:13]} Nh7 {[%emt 0:03:03]} 19. Nd2 {[%emt 0:08:47]} Bd5 {[%emt 0:12:47]} 20. Nc4 {[%emt 0:01:23]} Re6 {[%emt 0:06:50]} 21. Bf2 {[%emt 0:04:39]} Rce8 {[%emt 0:00:33]} 22. Rxe6 {[%emt 0:00:38]} Rxe6 {[%emt 0:00:20]} 23. Bg3 {[%emt 0:00:46]} f5 {[%emt 0:10:52]} 24. Bxc7 {[%emt 0:01:18]} Qxc7 {[%emt 0:00:17]} 25. Nd6 {[%emt 0:01:07]} Nf6 {[%emt 0:01:33]} 26. Qd2 {[%emt 0:01:09]} Ne8 {[%emt 0:02:45]} 27. Nxe8 {[%emt 0:01:34]} Rxe8 {[%emt 0:00:10]} 28. h3 {[%emt 0:07:30]} Qe7 {[%emt 0:09:44]} 29. Qf4 {[%emt 0:05:09]} Qe3 {[%emt 0:02:49]} 30. Qxe3 {[%emt 0:00:45]} Rxe3 {[%emt 0:00:09]} 31. Kc2 {[%emt 0:00:13]} Kg7 {[%emt 0:00:49]} 32. a3 {[%emt 0:00:26]} Kf6 {[%emt 0:00:31]} 33. Kd2 {[%emt 0:00:09]} Re6 {[%emt 0:00:06]} 34. Re1 {[%emt 0:00:18]} Kg5 {[%emt 0:01:21]} 35. Rxe6 {[%emt 0:00:16]} fxe6 {[%emt 0:00:06]} 36. Ke3 {[%emt 0:00:34]} Kf6 {[%emt 0:00:17]} 37. f4 {[%emt 0:01:28]} Bxg2 {[%emt 0:00:11]} 38. h4 {[%emt 0:00:05]} Bd5 {[%emt 0:00:11]} 39. b4 {[%emt 0:00:52]} Ke7 {[%emt 0:05:55]} 1/2-1/2

[Event "FIDE WCCC Open-08 2024"]
[Site "Montesilvano"]
[Date "2024.11.22"]
[Round "7.2"]
[White "Badescu, Matei-Andrei"]
[Black "Demchenko, Timofei"]
[Result "1-0"]
[ECO "C02"]
[WhiteElo "1829"]
[BlackElo "1969"]
[Annotator "RC"]
[PlyCount "173"]
[EventDate "2024.11.18"]
[EventType "swiss"]
[EventCountry "ITA"]
[SourceTitle "playchess.com"]
[Source "ChessBase"]
[SourceQuality "1"]
[TimeControl "5400+30"]

1. e4 {[%emt 0:00:04]} e6 {[%emt 0:00:07]} 2. d4 {[%emt 0:00:13]} d5 {[%emt 0:00:04]} 3. e5 {[%emt 0:00:15]} c5 {[%emt 0:00:06]} 4. c3 {[%emt 0:00:05]} Nc6 {[%emt 0:00:06]} 5. Nf3 {[%emt 0:00:12]} Bd7 {[%emt 0:00:26]} 6. Be2 {[%emt 0:01:12]} cxd4 {[%emt 0:00:52]} 7. cxd4 {[%emt 0:00:39]} Rc8 {[%emt 0:04:47]} 8. O-O {[%emt 0:03:27]} Nge7 {[%emt 0:04:37]} 9. Na3 {[%emt 0:01:33]} a6 {[%emt 0:00:39]} 10. Nc2 {[%emt 1:27:50]} Nf5 {[%emt 0:05:11]} 11. Bd3 {[%emt 0:00:00]} Be7 {[%emt 0:03:20]} 12. Bd2 {[%emt 0:00:00]} O-O {[%emt 0:02:28]} 13. Bc3 {[%emt 0:00:00]} b5 {[%emt 0:06:40]} 14. a3 {[%emt 0:00:00]} f6 {[%emt 0:08:58]} 15. exf6 {[%emt 0:00:00]} Bxf6 {[%emt 0:01:29]} 16. Re1 {[%emt 0:00:00]} Qb6 {[%emt 0:05:04]} 17. Bxf5 {[%emt 0:00:00]} exf5 {[%emt 0:00:14]} 18. Ne3 {[%emt 0:00:00]} Ne7 {[%emt 0:05:44]} 19. Bb4 {[%emt 0:00:00]} Be6 {[%emt 0:02:58]} 20. Bc5 {[%emt 0:00:00]} Rxc5 {[%emt 0:04:59]} 21. dxc5 {[%emt 0:00:00]} Qxc5 {[%emt 0:01:27]} 22. Nc2 {[%emt 0:00:00]} Qd6 {[%emt 0:04:03]} 23. Nfd4 {[%emt 0:00:00]} Bd7 {[%emt 0:37:41]} 24. Qd2 {[%emt 0:00:00]} Ng6 {[%emt 0:00:00]} 25. Rad1 {[%emt 0:00:00]} Rc8 {[%emt 0:00:00]} 26. Qb4 {[%emt 0:00:00]} Qb6 {[%emt 0:00:00]} 27. Ne3 {[%emt 0:00:00]} Ne7 {[%emt 0:00:00]} 28. Nf3 {[%emt 0:00:00]} a5 {[%emt 0:00:00]} 29. Qd2 {[%emt 0:00:00]} Be6 {[%emt 0:00:00]} 30. Nd4 {[%emt 0:00:00]} Bf7 {[%emt 0:00:00]} 31. Ndxf5 {[%emt 0:00:00]} Rd8 {[%emt 0:00:00]} 32. Nxe7+ {[%emt 0:00:00]} Bxe7 {[%emt 0:00:00]} 33. Ng4 {[%emt 0:00:00]} Bc5 {[%emt 0:00:00]} 34. b4 {[%emt 0:00:00]} axb4 {[%emt 0:00:00]} 35. axb4 {[%emt 0:00:00]} Bd6 {[%emt 0:00:00]} 36. Qg5 {[%emt 0:00:00]} Kh8 {[%emt 0:00:00]} 37. Ne5 {[%emt 0:00:00]} Bxe5 {[%emt 0:00:01]} 38. Qxe5 {[%emt 0:00:00]} Qg6 {[%emt 0:01:23]} 39. Qd4 {[%emt 0:00:00]} h6 {[%emt 0:02:16]} 40. Rc1 {[%emt 0:00:00]} Rd6 {[%emt 0:00:43]} 41. Rc3 {[%emt 0:00:00]} Rf6 {[%emt 0:00:30]} 42. h3 {[%emt 0:00:00]} Kh7 {[%emt 0:02:10]} 43. Rg3 {[%emt 0:00:00]} Qc2 {[%emt 0:00:53]} 44. Qd3+ {[%emt 0:00:48]} Qxd3 {[%emt 0:00:10]} 45. Rxd3 {[%emt 0:00:04]} g5 {[%emt 0:00:34]} 46. Rf3 {[%emt 0:00:15]} Kg6 {[%emt 0:00:28]} 47. Rxf6+ {[%emt 0:00:11]} Kxf6 {[%emt 0:00:01]} 48. f3 {[%emt 0:00:07]} d4 {[%emt 0:00:41]} 49. Kf2 {[%emt 0:02:23]} Bc4 {[%emt 0:00:28]} 50. Re4 {[%emt 0:00:15]} d3 {[%emt 0:00:12]} 51. Ke1 {[%emt 0:00:24]} Kf5 {[%emt 0:00:41]} 52. Kd2 {[%emt 0:00:35]} h5 {[%emt 0:00:40]} 53. g4+ {[%emt 0:00:35]} hxg4 {[%emt 0:00:12]} 54. hxg4+ {[%emt 0:00:07]} Kf6 {[%emt 0:00:06]} 55. Re3 {[%emt 0:00:24]} Kf7 {[%emt 0:01:05]} 56. Rxd3 {[%emt 0:01:14]} Ke6 {[%emt 0:00:45]} 57. Re3+ {[%emt 0:00:19]} Kf6 {[%emt 0:00:24]} 58. Ke1 {[%emt 0:01:11]} Kg6 {[%emt 0:00:10]} 59. Kf2 {[%emt 0:00:06]} Kf6 {[%emt 0:03:27]} 60. Kg3 {[%emt 0:00:09]} Bd5 {[%emt 0:00:00]} 61. f4 {[%emt 0:00:34]} gxf4+ {[%emt 0:00:00]} 62. Kxf4 {[%emt 0:00:42]} Bc4 {[%emt 0:00:00]} 63. Re5 {[%emt 0:00:16]} Bf1 {[%emt 0:00:00]} 64. g5+ {[%emt 0:00:06]} Kg6 {[%emt 0:00:00]} 65. Ke3 {[%emt 0:00:21]} Bc4 {[%emt 0:00:00]} 66. Kd4 {[%emt 0:00:09]} Bf1 {[%emt 0:00:00]} 67. Kc5 {[%emt 0:00:06]} Bc4 {[%emt 0:00:00]} 68. Kb6 {[%emt 0:00:12]} Bf1 {[%emt 0:00:00]} 69. Rxb5 {[%emt 0:00:13]} Bxb5 {[%emt 0:00:14]} 70. Kxb5 {[%emt 0:00:05]} Kxg5 {[%emt 0:00:07]} 71. Kc6 {[%emt 0:00:06]} Kf6 {[%emt 0:00:07]} 72. b5 {[%emt 0:00:07]} Ke7 {[%emt 0:00:04]} 73. Kc7 {[%emt 0:00:08]} Ke6 {[%emt 0:00:10]} 74. b6 {[%emt 0:00:05]} Ke5 {[%emt 0:00:04]} 75. b7 {[%emt 0:00:07]} Kd4 {[%emt 0:00:10]} 76. b8=Q {[%emt 0:20:36]} Kd5 {[%emt 0:00:06]} 77. Qe8 {[%emt 0:00:00]} Kd4 {[%emt 0:00:07]} 78. Qe2 {[%emt 0:00:00]} Kc3 {[%emt 0:00:13]} 79. Qd1 {[%emt 0:00:00]} Kc4 {[%emt 0:00:26]} 80. Kd6 {[%emt 0:00:00]} Kc3 {[%emt 0:00:13]} 81. Qg4 {[%emt 0:00:00]} Kd3 {[%emt 0:00:08]} 82. Kd5 {[%emt 0:00:00]} Ke3 {[%emt 0:00:11]} 83. Qg3+ {[%emt 0:00:00]} Kd2 {[%emt 0:00:08]} 84. Kd4 {[%emt 0:00:00]} Ke2 {[%emt 0:00:09]} 85. Qg2+ {[%emt 0:00:00]} Kd1 {[%emt 0:00:09]} 86. Kd3 {[%emt 0:00:00]} Kc1 {[%emt 0:00:06]} 87. Qc2# {[%emt 0:00:00]} 1-0